[Event "AUT 2nd BL Mitte 2021-22"]
[Site "Austria"]
[Date "2022.03.27"]
[Round "9.9"]
[White "Wanderer, Thomas"]
[Black "Rogic, Davor"]
[Result "0-1"]
[ECO "C24"]
[WhiteElo "2243"]
[BlackElo "2446"]
[Annotator "ChessBase"]
[PlyCount "42"]
[EventDate "2021.10.21"]
[EventType "team-tourn"]
[EventCountry "AUT"]
[SourceTitle "playchess.com"]
[Source "ChessBase"]
[SourceQuality "1"]
[TimeControl "40/5400+30:1800+30"]

1. e4 {[%emt 0:00:09]} e5 {[%emt 0:00:48]} 2. Bc4 {[%emt 0:00:33]} Nf6 {[%emt 0:01:38]} 3. d3 {[%emt 0:00:24]} Nc6 {[%emt 0:02:45]} 4. Nc3 {[%emt 0:00:37]} Bc5 {[%emt 0:02:01]} 5. f4 {[%emt 0:11:09]} d6 {[%emt 0:02:01]} 6. Nf3 {[%emt 0:01:59]} Ng4 {[%emt 0:08:27]} 7. Ng5 {[%emt 0:05:51]} exf4 {[%emt 0:29:07]} 8. Bxf7+ {[%emt 0:13:48]} Kf8 {[%emt 0:00:07]} 9. Bxf4 {[%emt 0:02:25]} Nf2 {[%emt 0:27:46]} 10. Qf3 {[%emt 0:21:01]} Nxh1 {[%emt 0:03:28]} 11. Nd5 {[%emt 0:20:39]} Nd4 {[%emt 0:01:12]} 12. Qh5 {[%emt 0:03:19]} c6 {[%emt 0:02:05]} 13. Ne3 {[%emt 0:05:23]} Qf6 {[%emt 0:01:06]} 14. g3 {[%emt 0:02:20]} g6 {[%emt 0:03:25]} 15. Qh4 {[%emt 0:05:37]} Kg7 {[%emt 0:04:51]} 16. Bb3 {[%emt 0:01:49]} h6 {[%emt 0:00:27]} 17. Ng4 {[%emt 0:01:19]} hxg5 {[%emt 0:01:16]} 18. Qxh8+ {[%emt 0:00:34]} Kxh8 {[%emt 0:00:04]} 19. Nxf6 {[%emt 0:00:03]} gxf4 {[%emt 0:00:24]} 20. c3 {[%emt 0:00:53]} Nxb3 {[%emt 0:00:19]} 21. axb3 {[%emt 0:00:01]} fxg3 {[%emt 0:01:39]} 0-1

[Event "AUT 2nd BL Mitte 2021-22"]
[Site "Austria"]
[Date "2022.03.27"]
[Round "9.10"]
[White "Drnovsek, Gal"]
[Black "Frosch, Erich"]
[Result "1-0"]
[ECO "D37"]
[WhiteElo "2392"]
[BlackElo "2185"]
[Annotator "ChessBase"]
[PlyCount "55"]
[EventDate "2021.10.21"]
[EventType "team-tourn"]
[EventCountry "AUT"]
[SourceTitle "playchess.com"]
[Source "ChessBase"]
[SourceQuality "1"]
[TimeControl "40/5400+30:1800+30"]

1. d4 {[%emt 0:00:04]} Nf6 {[%emt 0:00:06]} 2. c4 {[%emt 0:00:07]} e6 {[%emt 0:00:05]} 3. Nf3 {[%emt 0:00:25]} d5 {[%emt 0:00:07]} 4. Nc3 {[%emt 0:00:24]} Be7 {[%emt 0:00:08]} 5. Bf4 {[%emt 0:00:16]} a6 {[%emt 0:00:14]} 6. c5 {[%emt 0:03:34]} Nc6 {[%emt 0:01:34]} 7. a3 {[%emt 0:03:52]} Ne4 {[%emt 0:00:07]} 8. e3 {[%emt 0:06:09]} g5 {[%emt 0:05:48]} 9. Be5 {[%emt 0:01:52]} f6 {[%emt 0:01:36]} 10. Bg3 {[%emt 0:01:08]} h5 {[%emt 0:01:05]} 11. h3 {[%emt 0:02:58]} Nxg3 {[%emt 0:00:15]} 12. fxg3 {[%emt 0:00:06]} f5 {[%emt 0:00:51]} 13. Be2 {[%emt 0:06:22]} O-O {[%emt 0:06:49]} 14. Qc2 {[%emt 0:08:28]} Kg7 {[%emt 0:05:46]} 15. O-O-O {[%emt 0:02:45]} g4 {[%emt 0:06:34]} 16. hxg4 {[%emt 0:01:10]} hxg4 {[%emt 0:00:09]} 17. Nd2 {[%emt 0:07:41]} Bg5 {[%emt 0:00:44]} 18. Qd3 {[%emt 0:00:41]} Rh8 {[%emt 0:00:23]} 19. Kb1 {[%emt 0:07:24]} Bd7 {[%emt 0:03:42]} 20. e4 {[%emt 0:03:07]} Bxd2 {[%emt 0:09:57]} 21. Qxd2 {[%emt 0:05:05]} fxe4 {[%emt 0:02:39]} 22. Rxh8 {[%emt 0:01:06]} Qxh8 {[%emt 0:00:31]} 23. Qg5+ {[%emt 0:00:07]} Kf7 {[%emt 0:00:13]} 24. Rf1+ {[%emt 0:00:40]} Ke8 {[%emt 0:00:10]} 25. Bxg4 {[%emt 0:00:34]} Ne7 {[%emt 0:03:43]} 26. Bh5+ {[%emt 0:00:07]} Kd8 {[%emt 0:00:21]} 27. Rf7 {[%emt 0:00:20]} Qe8 {[%emt 0:00:15]} 28. Qf6 {[%emt 0:00:09]} 1-0

[Event "AUT 2nd BL Mitte 2021-22"]
[Site "Austria"]
[Date "2022.03.27"]
[Round "9.11"]
[White "Manhardt, Thomas"]
[Black "Dietmayer-Kraeutler, Marco"]
[Result "0-1"]
[ECO "A01"]
[WhiteElo "2247"]
[BlackElo "2312"]
[Annotator "ChessBase"]
[PlyCount "82"]
[EventDate "2021.10.21"]
[EventType "team-tourn"]
[EventCountry "AUT"]
[SourceTitle "playchess.com"]
[Source "ChessBase"]
[SourceQuality "1"]
[TimeControl "40/5400+30:1800+30"]

1. b3 {[%emt 0:00:05]} d5 {[%emt 0:00:14]} 2. Bb2 {[%emt 0:00:27]} c5 {[%emt 0:00:10]} 3. e3 {[%emt 0:00:23]} Nc6 {[%emt 0:00:04]} 4. Bb5 {[%emt 0:01:08]} Qc7 {[%emt 0:00:38]} 5. f4 {[%emt 0:02:28]} a6 {[%emt 0:01:24]} 6. Bxc6+ {[%emt 0:01:12]} Qxc6 {[%emt 0:00:05]} 7. Nf3 {[%emt 0:00:16]} Nf6 {[%emt 0:03:22]} 8. Ne5 {[%emt 0:03:51]} Qc7 {[%emt 0:05:59]} 9. d3 {[%emt 0:01:55]} g6 {[%emt 0:03:43]} 10. Nd2 {[%emt 0:12:21]} Bg7 {[%emt 0:00:28]} 11. O-O {[%emt 0:04:38]} Ng4 {[%emt 0:09:23]} 12. Qf3 {[%emt 0:04:49]} Nxe5 {[%emt 0:02:22]} 13. Bxe5 {[%emt 0:08:16]} Bxe5 {[%emt 0:00:31]} 14. fxe5 {[%emt 0:00:04]} Be6 {[%emt 0:00:31]} 15. Qg3 {[%emt 0:12:17]} O-O {[%emt 0:01:47]} 16. Nf3 {[%emt 0:04:40]} h6 {[%emt 0:02:48]} 17. Rf2 {[%emt 0:04:05]} Kg7 {[%emt 0:01:02]} 18. Raf1 {[%emt 0:00:46]} Qa5 {[%emt 0:01:41]} 19. a4 {[%emt 0:15:08]} Qc3 {[%emt 0:03:46]} 20. h4 {[%emt 0:01:25]} b5 {[%emt 0:01:40]} 21. axb5 {[%emt 0:01:29]} axb5 {[%emt 0:00:05]} 22. h5 {[%emt 0:01:32]} Ra1 {[%emt 0:03:48]} 23. hxg6 {[%emt 0:05:33]} Rxf1+ {[%emt 0:00:52]} 24. Rxf1 {[%emt 0:00:04]} fxg6 {[%emt 0:00:12]} 25. Rf2 {[%emt 0:00:45]} Rf5 {[%emt 0:12:11]} 26. Qh4 {[%emt 0:09:09]} Rf7 {[%emt 0:02:34]} 27. Qg3 {[%emt 0:01:40]} b4 {[%emt 0:00:53]} 28. Kh2 {[%emt 0:01:38]} Rf5 {[%emt 0:05:04]} 29. Nh4 {[%emt 0:01:20]} Rg5 {[%emt 0:01:53]} 30. Qf3 {[%emt 0:00:40]} Qxe5+ {[%emt 0:00:25]} 31. g3 {[%emt 0:00:02]} Qb8 {[%emt 0:03:40]} 32. Kg2 {[%emt 0:01:44]} Rg4 {[%emt 0:05:20]} 33. e4 {[%emt 0:00:36]} dxe4 {[%emt 0:10:15]} 34. dxe4 {[%emt 0:00:02]} Qa8 {[%emt 0:00:28]} 35. Re2 {[%emt 0:00:45]} h5 {[%emt 0:02:01]} 36. Kh2 {[%emt 0:00:37]} Qb8 {[%emt 0:01:34]} 37. Kg2 {[%emt 0:00:26]} c4 {[%emt 0:00:34]} 38. Qe3 {[%emt 0:00:39]} Qe5 {[%emt 0:00:43]} 39. Qf3 {[%emt 0:00:32]} cxb3 {[%emt 0:03:44]} 40. cxb3 {[%emt 0:00:00]} Qf6 {[%emt 0:00:00]} 41. Re3 {[%emt 0:11:14]} Qxh4 0-1

[Event "AUT 2nd BL Mitte 2021-22"]
[Site "Austria"]
[Date "2022.03.27"]
[Round "9.12"]
[White "Ceschia, Ivano"]
[Black "Wegerer, Fred"]
[Result "1-0"]
[ECO "A46"]
[WhiteElo "2229"]
[BlackElo "2089"]
[Annotator "ChessBase"]
[PlyCount "71"]
[EventDate "2021.10.21"]
[EventType "team-tourn"]
[EventCountry "AUT"]
[SourceTitle "playchess.com"]
[Source "ChessBase"]
[SourceQuality "1"]
[TimeControl "40/5400+30:1800+30"]

1. d4 {[%emt 0:00:04]} Nf6 {[%emt 0:00:39]} 2. Nf3 {[%emt 0:00:09]} d6 {[%emt 0:03:07]} 3. g3 {[%emt 0:02:24]} Nbd7 {[%emt 0:01:28]} 4. Bg2 {[%emt 0:00:24]} e5 {[%emt 0:02:50]} 5. c4 {[%emt 0:00:20]} Be7 {[%emt 0:01:32]} 6. Nc3 {[%emt 0:00:45]} O-O {[%emt 0:00:40]} 7. O-O {[%emt 0:00:09]} a6 {[%emt 0:01:54]} 8. Qc2 {[%emt 0:01:27]} Rb8 {[%emt 0:03:21]} 9. Rd1 {[%emt 0:01:09]} exd4 {[%emt 0:00:55]} 10. Nxd4 {[%emt 0:00:25]} Re8 {[%emt 0:05:53]} 11. b3 {[%emt 0:06:06]} g6 {[%emt 0:10:34]} 12. Bb2 {[%emt 0:01:53]} c5 {[%emt 0:02:54]} 13. Nf3 {[%emt 0:02:29]} b5 {[%emt 0:00:14]} 14. Ne4 {[%emt 0:27:02]} Nxe4 {[%emt 0:15:10]} 15. Qxe4 {[%emt 0:00:05]} Bb7 {[%emt 0:24:32]} 16. Qf4 {[%emt 0:00:49]} bxc4 {[%emt 0:01:36]} 17. Qxc4 {[%emt 0:00:57]} Bf6 {[%emt 0:13:03]} 18. Qc2 {[%emt 0:02:12]} Qe7 {[%emt 0:02:12]} 19. e3 {[%emt 0:01:17]} Be4 {[%emt 0:00:19]} 20. Qe2 {[%emt 0:00:30]} a5 {[%emt 0:02:46]} 21. Bxf6 {[%emt 0:04:57]} Qxf6 {[%emt 0:00:52]} 22. Nd2 {[%emt 0:03:14]} Bxg2 {[%emt 0:00:20]} 23. Kxg2 {[%emt 0:00:04]} d5 {[%emt 0:01:10]} 24. Qf3 {[%emt 0:02:35]} Qe6 {[%emt 0:00:38]} 25. Qf4 {[%emt 0:01:06]} Rb4 {[%emt 0:00:38]} 26. Qc7 {[%emt 0:00:38]} a4 {[%emt 0:00:53]} 27. h4 {[%emt 0:08:16]} axb3 {[%emt 0:00:56]} 28. axb3 {[%emt 0:00:02]} d4 {[%emt 0:01:27]} 29. e4 {[%emt 0:15:53]} d3 {[%emt 0:00:15]} 30. Nf3 {[%emt 0:05:45]} Rxb3 {[%emt 0:01:00]} 31. Ra7 {[%emt 0:00:59]} Qe7 {[%emt 0:01:33]} 32. Qxd7 {[%emt 0:00:13]} Qxd7 {[%emt 0:00:31]} 33. Rxd7 {[%emt 0:00:04]} c4 {[%emt 0:00:01]} 34. Nd2 {[%emt 0:02:59]} Rb2 {[%emt 0:00:25]} 35. Nxc4 {[%emt 0:00:09]} Rc2 {[%emt 0:00:09]} 36. Nd6 {[%emt 0:00:15]} 1-0

[Event "AUT 2nd BL Mitte 2021-22"]
[Site "Austria"]
[Date "2022.03.27"]
[Round "9.13"]
[White "Khalakhan, Jurij"]
[Black "Babula, Vlastimil"]
[Result "0-1"]
[ECO "D05"]
[WhiteElo "2204"]
[BlackElo "2558"]
[Annotator "ChessBase"]
[PlyCount "120"]
[EventDate "2021.10.21"]
[EventType "team-tourn"]
[EventCountry "AUT"]
[SourceTitle "playchess.com"]
[Source "ChessBase"]
[SourceQuality "1"]
[TimeControl "40/5400+30:1800+30"]

1. d4 {[%emt 0:00:02]} Nf6 {[%emt 0:00:13]} 2. Nf3 {[%emt 0:00:06]} e6 {[%emt 0:00:33]} 3. Nbd2 {[%emt 0:00:14]} d5 {[%emt 0:04:35]} 4. e3 {[%emt 0:00:12]} c5 {[%emt 0:00:53]} 5. b3 {[%emt 0:00:13]} cxd4 {[%emt 0:04:02]} 6. exd4 {[%emt 0:00:07]} Nc6 {[%emt 0:03:23]} 7. Bb2 {[%emt 0:00:54]} Bd6 {[%emt 0:05:46]} 8. a3 {[%emt 0:09:20]} Ne4 {[%emt 0:12:44]} 9. Ne5 {[%emt 0:15:01]} Nxd2 {[%emt 0:04:53]} 10. Qxd2 {[%emt 0:04:44]} Qc7 {[%emt 0:00:23]} 11. f4 {[%emt 0:07:09]} f6 {[%emt 0:02:30]} 12. Nd3 {[%emt 0:00:46]} O-O {[%emt 0:01:58]} 13. Be2 {[%emt 0:02:55]} Qb6 {[%emt 0:07:08]} 14. Nc5 {[%emt 0:11:36]} Qc7 {[%emt 0:09:00]} 15. Nd3 {[%emt 0:03:33]} Bd7 {[%emt 0:00:09]} 16. Bf3 {[%emt 0:09:02]} Rac8 {[%emt 0:04:01]} 17. O-O {[%emt 0:00:27]} Qb6 {[%emt 0:01:52]} 18. Qf2 {[%emt 0:01:31]} Ne7 {[%emt 0:00:59]} 19. Rfe1 {[%emt 0:09:06]} Qc7 {[%emt 0:04:56]} 20. Rac1 {[%emt 0:00:13]} Bxf4 {[%emt 0:01:53]} 21. Nxf4 {[%emt 0:00:06]} Qxf4 {[%emt 0:00:05]} 22. c4 {[%emt 0:00:09]} Qd6 {[%emt 0:03:52]} 23. c5 {[%emt 0:05:13]} Qc6 {[%emt 0:03:50]} 24. b4 {[%emt 0:00:18]} Rce8 {[%emt 0:00:59]} 25. Be2 {[%emt 0:00:26]} a6 {[%emt 0:02:41]} 26. Bd3 {[%emt 0:02:58]} Qc7 {[%emt 0:04:53]} 27. Qh4 {[%emt 0:00:52]} Ng6 {[%emt 0:01:48]} 28. Bxg6 {[%emt 0:00:17]} hxg6 {[%emt 0:00:05]} 29. Rc3 {[%emt 0:00:25]} Kf7 {[%emt 0:00:31]} 30. Rg3 {[%emt 0:01:26]} Ba4 {[%emt 0:04:36]} 31. Bc1 {[%emt 0:04:08]} Rh8 {[%emt 0:00:48]} 32. Qf4 {[%emt 0:00:26]} Qxf4 {[%emt 0:00:40]} 33. Bxf4 {[%emt 0:00:06]} Rh4 {[%emt 0:02:21]} 34. Rf3 {[%emt 0:01:40]} g5 {[%emt 0:00:48]} 35. g3 {[%emt 0:00:58]} Rh5 {[%emt 0:00:42]} 36. Bd6 {[%emt 0:00:13]} Bc2 {[%emt 0:03:15]} 37. Rc3 {[%emt 0:00:52]} Ba4 {[%emt 0:01:00]} 38. Rf3 {[%emt 0:00:35]} Rhh8 {[%emt 0:00:17]} 39. Rf2 {[%emt 0:00:22]} Ra8 {[%emt 0:00:29]} 40. Rb2 {[%emt 0:00:00]} Bb5 {[%emt 0:00:00]} 41. Ra1 {[%emt 0:02:04]} Ke8 {[%emt 0:04:24]} 42. a4 {[%emt 0:02:39]} Bc4 {[%emt 0:01:12]} 43. Re1 {[%emt 0:04:33]} Kd7 {[%emt 0:00:13]} 44. a5 {[%emt 0:00:01]} Rae8 {[%emt 0:01:27]} 45. Re3 {[%emt 0:01:33]} g4 {[%emt 0:05:30]} 46. Rf2 {[%emt 0:03:32]} Rh5 {[%emt 0:00:20]} 47. Rf4 {[%emt 0:01:09]} Rg5 {[%emt 0:00:18]} 48. Rf2 {[%emt 0:00:09]} Kc6 {[%emt 0:00:49]} 49. Rb2 {[%emt 0:11:05]} e5 {[%emt 0:02:18]} 50. Rb1 {[%emt 0:00:32]} Rf5 {[%emt 0:03:39]} 51. Rbe1 {[%emt 0:00:49]} e4 {[%emt 0:00:41]} 52. Rb1 {[%emt 0:01:43]} Rh8 {[%emt 0:00:45]} 53. Rc1 {[%emt 0:00:51]} Kb5 {[%emt 0:00:58]} 54. Rb1 {[%emt 0:00:43]} Rh7 {[%emt 0:01:13]} 55. Rc1 {[%emt 0:01:39]} g5 {[%emt 0:00:24]} 56. Rb1 {[%emt 0:00:36]} Rf3 {[%emt 0:01:31]} 57. Rbe1 {[%emt 0:00:47]} Bd3 {[%emt 0:01:03]} 58. Rxf3 {[%emt 0:02:21]} gxf3 {[%emt 0:00:03]} 59. g4 {[%emt 0:00:17]} Kc4 {[%emt 0:01:06]} 60. Kf2 {[%emt 0:01:22]} Kxd4 {[%emt 0:00:41]} 0-1

[Event "AUT 2nd BL Mitte 2021-22"]
[Site "Austria"]
[Date "2022.03.27"]
[Round "9.14"]
[White "Bauer, Sebastian"]
[Black "Krebs, Johann"]
[Result "1-0"]
[ECO "E73"]
[WhiteElo "2341"]
[BlackElo "2184"]
[Annotator "ChessBase"]
[PlyCount "79"]
[EventDate "2021.10.21"]
[EventType "team-tourn"]
[EventCountry "AUT"]
[SourceTitle "playchess.com"]
[Source "ChessBase"]
[SourceQuality "1"]
[TimeControl "40/5400+30:1800+30"]

1. d4 {[%emt 0:00:02]} Nf6 {[%emt 0:00:31]} 2. c4 {[%emt 0:00:25]} g6 {[%emt 0:00:18]} 3. Nc3 {[%emt 0:00:09]} Bg7 {[%emt 0:00:07]} 4. e4 {[%emt 0:00:07]} d6 {[%emt 0:00:07]} 5. Be2 {[%emt 0:00:06]} O-O {[%emt 0:00:10]} 6. Be3 {[%emt 0:00:04]} e5 {[%emt 0:01:33]} 7. d5 {[%emt 0:00:22]} Na6 {[%emt 0:01:09]} 8. g4 {[%emt 0:00:28]} Nc5 {[%emt 0:00:16]} 9. f3 {[%emt 0:00:05]} h5 {[%emt 0:00:16]} 10. g5 {[%emt 0:00:18]} Nh7 {[%emt 0:00:12]} 11. h4 {[%emt 0:00:39]} f6 {[%emt 0:01:16]} 12. gxf6 {[%emt 0:00:36]} Bxf6 {[%emt 0:02:25]} 13. Bf2 {[%emt 0:00:28]} Be7 {[%emt 0:08:12]} 14. Kd2 {[%emt 0:00:36]} Rf4 {[%emt 0:06:37]} 15. Qe1 {[%emt 0:01:47]} c6 {[%emt 0:02:33]} 16. Kc2 {[%emt 0:01:36]} Nf6 {[%emt 0:11:55]} 17. Rc1 {[%emt 0:04:51]} a5 {[%emt 0:14:25]} 18. Kb1 {[%emt 0:05:37]} a4 {[%emt 0:02:08]} 19. Nh3 {[%emt 0:11:00]} cxd5 {[%emt 0:09:27]} 20. Nxf4 {[%emt 0:09:49]} exf4 {[%emt 0:00:53]} 21. Bxc5 {[%emt 0:23:16]} dxc5 {[%emt 0:01:38]} 22. cxd5 {[%emt 0:05:21]} Nd7 {[%emt 0:04:38]} 23. d6 {[%emt 0:03:17]} Bxd6 {[%emt 0:04:28]} 24. Rd1 {[%emt 0:00:39]} Qf8 {[%emt 0:10:08]} 25. Qd2 {[%emt 0:07:21]} Be5 {[%emt 0:01:03]} 26. Qd5+ {[%emt 0:00:32]} Kg7 {[%emt 0:03:04]} 27. Bb5 {[%emt 0:00:22]} Bxc3 {[%emt 0:00:20]} 28. bxc3 {[%emt 0:00:40]} Nf6 {[%emt 0:03:20]} 29. Qe5 {[%emt 0:01:49]} c4 {[%emt 0:07:13]} 30. Bxc4 {[%emt 0:02:18]} b5 {[%emt 0:02:06]} 31. Qc7+ {[%emt 0:01:09]} Kh6 {[%emt 0:01:39]} 32. Rd8 {[%emt 0:03:12]} Qg7 {[%emt 0:00:30]} 33. Qxf4+ {[%emt 0:02:03]} Kh7 {[%emt 0:00:20]} 34. Be6 {[%emt 0:02:36]} Bb7 {[%emt 0:01:23]} 35. Rxa8 {[%emt 0:00:21]} Bxa8 {[%emt 0:00:02]} 36. Rd1 {[%emt 0:01:44]} a3 {[%emt 0:00:52]} 37. Qe5 {[%emt 0:01:07]} b4 {[%emt 0:00:38]} 38. cxb4 {[%emt 0:01:56]} Qe7 {[%emt 0:00:09]} 39. Rd7 {[%emt 0:00:26]} Nxd7 {[%emt 0:01:03]} 40. Bg8+ {[%emt 0:00:00]} 1-0

[Event "AUT 2nd BL Mitte 2021-22"]
[Site "Austria"]
[Date "2022.03.27"]
[Round "9.15"]
[White "Ebner, Hubert"]
[Black "Weiss, Christian"]
[Result "1/2-1/2"]
[ECO "A40"]
[WhiteElo "2189"]
[BlackElo "2380"]
[Annotator "ChessBase"]
[PlyCount "47"]
[EventDate "2021.10.21"]
[EventType "team-tourn"]
[EventCountry "AUT"]
[SourceTitle "playchess.com"]
[Source "ChessBase"]
[SourceQuality "1"]
[TimeControl "40/5400+30:1800+30"]

1. d4 {[%emt 0:00:30]} g6 {[%emt 0:00:23]} 2. c4 {[%emt 0:03:17]} Bg7 {[%emt 0:02:44]} 3. e4 {[%emt 0:02:02]} d6 {[%emt 0:00:33]} 4. Nc3 {[%emt 0:01:00]} c5 {[%emt 0:06:01]} 5. Nge2 {[%emt 0:12:26]} cxd4 {[%emt 0:08:12]} 6. Nxd4 {[%emt 0:01:19]} Nf6 {[%emt 0:00:07]} 7. Be2 {[%emt 0:00:33]} O-O {[%emt 0:00:04]} 8. O-O {[%emt 0:00:22]} Nc6 {[%emt 0:01:17]} 9. Be3 {[%emt 0:00:45]} Bd7 {[%emt 0:00:45]} 10. Qd2 {[%emt 0:08:14]} Nxd4 {[%emt 0:01:17]} 11. Bxd4 {[%emt 0:00:07]} Bc6 {[%emt 0:00:04]} 12. f3 {[%emt 0:00:14]} a5 {[%emt 0:01:37]} 13. b3 {[%emt 0:00:10]} Nd7 {[%emt 0:02:33]} 14. Be3 {[%emt 0:00:15]} Nc5 {[%emt 0:04:38]} 15. Rab1 {[%emt 0:00:57]} Qc7 {[%emt 0:12:03]} 16. Rfd1 {[%emt 0:03:08]} Rfc8 {[%emt 0:03:01]} 17. Bf1 {[%emt 0:02:21]} Be5 {[%emt 0:09:54]} 18. Rdc1 {[%emt 0:24:46]} Qd8 {[%emt 0:09:00]} 19. Rc2 {[%emt 0:02:00]} Qf8 {[%emt 0:01:07]} 20. Bh6 {[%emt 0:01:42]} Bg7 {[%emt 0:00:17]} 21. Be3 {[%emt 0:00:20]} Be5 {[%emt 0:00:47]} 22. Bh6 {[%emt 0:00:20]} Bg7 {[%emt 0:00:03]} 23. Be3 {[%emt 0:00:10]} Be5 {[%emt 0:00:03]} 24. Ra1 1/2-1/2

[Event "AUT 2nd BL Mitte 2021-22"]
[Site "Austria"]
[Date "2022.03.27"]
[Round "9.16"]
[White "Knoll, Hermann"]
[Black "Skuhala, Jernej"]
[Result "0-1"]
[ECO "A46"]
[WhiteElo "2313"]
[BlackElo "2357"]
[Annotator "ChessBase"]
[PlyCount "82"]
[EventDate "2021.10.21"]
[EventType "team-tourn"]
[EventCountry "AUT"]
[SourceTitle "playchess.com"]
[Source "ChessBase"]
[SourceQuality "1"]
[TimeControl "40/5400+30:1800+30"]

1. d4 {[%emt 0:00:06]} Nf6 {[%emt 0:00:02]} 2. Nf3 {[%emt 0:00:09]} e6 {[%emt 0:00:02]} 3. g3 {[%emt 0:01:13]} d5 {[%emt 0:00:05]} 4. Bg2 {[%emt 0:00:50]} Be7 {[%emt 0:00:36]} 5. O-O {[%emt 0:00:18]} O-O {[%emt 0:00:04]} 6. b3 {[%emt 0:01:37]} c5 {[%emt 0:05:08]} 7. dxc5 {[%emt 0:00:53]} Bxc5 {[%emt 0:00:05]} 8. Bb2 {[%emt 0:00:09]} Nc6 {[%emt 0:00:41]} 9. Nbd2 {[%emt 0:00:11]} Re8 {[%emt 0:03:12]} 10. a3 {[%emt 0:02:57]} a5 {[%emt 0:05:04]} 11. c4 {[%emt 0:02:18]} Qe7 {[%emt 0:12:44]} 12. Qc2 {[%emt 0:01:15]} d4 {[%emt 0:08:31]} 13. Ng5 {[%emt 0:10:24]} e5 {[%emt 0:09:49]} 14. Bd5 {[%emt 0:01:48]} Nd8 {[%emt 0:00:42]} 15. Nge4 {[%emt 0:00:49]} Bf5 {[%emt 0:04:28]} 16. Nxf6+ {[%emt 0:00:21]} Qxf6 {[%emt 0:00:16]} 17. Be4 {[%emt 0:01:49]} g6 {[%emt 0:07:54]} 18. b4 {[%emt 0:06:09]} axb4 {[%emt 0:01:09]} 19. axb4 {[%emt 0:00:12]} Rxa1 {[%emt 0:00:05]} 20. Rxa1 {[%emt 0:00:09]} Bxb4 {[%emt 0:01:33]} 21. Qa4 {[%emt 0:00:07]} Qe7 {[%emt 0:00:04]} 22. Bxf5 {[%emt 0:00:36]} gxf5 {[%emt 0:00:33]} 23. Nf3 {[%emt 0:00:04]} Nc6 {[%emt 0:01:08]} 24. Nh4 {[%emt 0:00:12]} Qd7 {[%emt 0:00:16]} 25. Qb5 {[%emt 0:00:16]} Be7 {[%emt 0:02:19]} 26. Nf3 {[%emt 0:03:41]} Bf6 {[%emt 0:00:15]} 27. Nd2 {[%emt 0:01:47]} Kg7 {[%emt 0:09:20]} 28. Nb3 {[%emt 0:00:11]} Qc7 {[%emt 0:03:40]} 29. Nc5 {[%emt 0:02:29]} e4 {[%emt 0:01:46]} 30. Nb3 {[%emt 0:03:32]} d3 {[%emt 0:08:04]} 31. Bxf6+ {[%emt 0:00:16]} Kxf6 {[%emt 0:00:01]} 32. exd3 {[%emt 0:00:34]} exd3 {[%emt 0:00:04]} 33. Rd1 {[%emt 0:01:43]} Rd8 {[%emt 0:05:30]} 34. c5 {[%emt 0:01:54]} Qe7 {[%emt 0:02:59]} 35. Nc1 {[%emt 0:01:38]} d2 {[%emt 0:04:50]} 36. Nd3 {[%emt 0:03:52]} Nd4 {[%emt 0:01:45]} 37. Qb2 {[%emt 0:00:07]} Qe2 {[%emt 0:00:23]} 38. Qb6+ {[%emt 0:01:54]} Kg7 {[%emt 0:00:06]} 39. Nb2 {[%emt 0:00:04]} Qe1+ {[%emt 0:00:38]} 40. Kg2 {[%emt 0:00:00]} Qe4+ {[%emt 0:00:00]} 41. Kh3 {[%emt 0:00:26]} Ne6 {[%emt 0:00:39]} 0-1

[Event "AUT 2nd BL Mitte 2021-22"]
[Site "Austria"]
[Date "2022.03.27"]
[Round "9.17"]
[White "Supancic, Darko"]
[Black "Moser, Guenter"]
[Result "1/2-1/2"]
[ECO "A89"]
[WhiteElo "2275"]
[BlackElo "2230"]
[Annotator "ChessBase"]
[PlyCount "84"]
[EventDate "2021.10.21"]
[EventType "team-tourn"]
[EventCountry "AUT"]
[SourceTitle "playchess.com"]
[Source "ChessBase"]
[SourceQuality "1"]
[TimeControl "40/5400+30:1800+30"]

1. Nf3 {[%emt 0:00:16]} f5 {[%emt 0:00:18]} 2. g3 {[%emt 0:01:53]} Nf6 {[%emt 0:00:20]} 3. Bg2 {[%emt 0:00:07]} g6 {[%emt 0:01:51]} 4. O-O {[%emt 0:01:47]} Bg7 {[%emt 0:00:05]} 5. d4 {[%emt 0:02:36]} O-O {[%emt 0:00:10]} 6. c4 {[%emt 0:04:32]} d6 {[%emt 0:03:47]} 7. Nc3 {[%emt 0:01:34]} Nc6 {[%emt 0:00:20]} 8. d5 {[%emt 0:04:23]} Ne5 {[%emt 0:06:09]} 9. Nxe5 {[%emt 0:09:47]} dxe5 {[%emt 0:00:47]} 10. b3 {[%emt 0:02:11]} h6 {[%emt 0:02:42]} 11. Bb2 {[%emt 0:04:45]} g5 {[%emt 0:07:38]} 12. Qd2 {[%emt 0:04:20]} a6 {[%emt 0:15:07]} 13. Rfd1 {[%emt 0:07:39]} Qe8 {[%emt 0:04:41]} 14. c5 {[%emt 0:02:12]} Qh5 {[%emt 0:14:04]} 15. d6 {[%emt 0:05:18]} exd6 {[%emt 0:13:08]} 16. Nd5 {[%emt 0:04:32]} Nxd5 {[%emt 0:04:42]} 17. Qxd5+ {[%emt 0:03:43]} Kh7 {[%emt 0:06:24]} 18. cxd6 {[%emt 0:03:40]} c6 {[%emt 0:00:05]} 19. Qa5 {[%emt 0:02:59]} Qe8 {[%emt 0:05:00]} 20. Rac1 {[%emt 0:13:08]} Rf7 {[%emt 0:01:58]} 21. e3 {[%emt 0:01:22]} e4 {[%emt 0:01:07]} 22. Bxg7 {[%emt 0:01:05]} Kxg7 {[%emt 0:01:58]} 23. Bf1 {[%emt 0:03:23]} Be6 {[%emt 0:00:50]} 24. Rd4 {[%emt 0:06:22]} Rd8 {[%emt 0:00:39]} 25. Bc4 {[%emt 0:01:20]} Rdd7 {[%emt 0:01:05]} 26. Qe5+ {[%emt 0:00:59]} Rf6 {[%emt 0:00:01]} 27. a4 {[%emt 0:01:57]} Bf7 {[%emt 0:00:47]} 28. Qc5 {[%emt 0:01:39]} Qd8 {[%emt 0:03:34]} 29. Rcd1 {[%emt 0:00:45]} Qe8 {[%emt 0:01:52]} 30. b4 {[%emt 0:01:45]} Bxc4 {[%emt 0:00:17]} 31. Qxc4 {[%emt 0:00:03]} Re6 {[%emt 0:00:44]} 32. b5 {[%emt 0:00:51]} cxb5 {[%emt 0:01:17]} 33. axb5 {[%emt 0:00:05]} axb5 {[%emt 0:00:03]} 34. Qxb5 {[%emt 0:00:22]} Qf7 {[%emt 0:00:31]} 35. Rd5 {[%emt 0:01:27]} Rf6 {[%emt 0:00:23]} 36. Qb2 {[%emt 0:00:33]} Kg6 {[%emt 0:00:13]} 37. Qd4 {[%emt 0:01:03]} Re6 {[%emt 0:01:53]} 38. Qc5 {[%emt 0:01:39]} Qf8 {[%emt 0:02:02]} 39. Qd4 {[%emt 0:00:48]} Qf6 {[%emt 0:00:35]} 40. Qd2 {[%emt 0:00:00]} Qf8 {[%emt 0:00:00]} 41. Kg2 {[%emt 0:02:08]} Qf6 {[%emt 0:00:54]} 42. Qb4 Qf8 1/2-1/2